bitfinex/quotes_SOLUSD_20250609
["timestamp","ask_amount","ask_price","bid_price","bid_amount"]
[1749495731169,18.90714799,156.65,156.63,18.64964886]
[1749495732077,12.52333032,156.64,156.62,129.0]
[1749495732968,18.90743302,156.64,156.62,129.0]
[1749495733352,12.52333032,156.65,156.63,18.64964886]
[1749495733773,12.52333032,156.65,156.63,108.54964886]
[1749495735058,18.9072812,156.65,156.63,108.54964886]
[1749495744976,23.68246474,156.65,156.63,108.54964886]
[1749495745174,18.9072812,156.65,156.63,108.54964886]
[1749495745704,6.38243553,156.68,156.63,108.54964886]
[1749495745887,12.52333032,156.65,156.63,108.54964886]
[1749495746494,22.33852437,156.68,156.63,108.54964886]
[1749495746700,12.52333032,156.65,156.63,108.54964886]
[1749495748570,4.77788295,156.67,156.65,18.64964886]
[1749495748801,4.77724225,156.68,156.65,57.66964886]
[1749495749096,12.52333032,156.68,156.65,57.66964886]
[1749495749671,18.90587451,156.68,156.65,57.66964886]
[1749495750493,4.77430817,156.7,156.65,57.66964886]
[1749495750693,6.38136406,156.71,156.67,18.64964886]
[1749495750870,4.77457466,156.7,156.68,39.02]
[1749495751067,12.52333032,156.7,156.68,39.02]
[1749495751802,17.29684162,156.7,156.68,39.02]
[1749495752169,11.669061,156.72,156.69,44.64964886]
[1749495752374,4.77320129,156.71,156.69,18.64964886]
[1749495752602,4.77320129,156.71,156.69,57.66964886]
[1749495752903,4.77320129,156.71,156.69,39.02]
[1749495753088,12.52333032,156.71,156.69,39.02]
[1749495753289,17.29502401,156.71,156.69,39.02]
[1749495753468,12.52333032,156.71,156.69,39.02]
[1749495753872,17.29392315,156.71,156.69,39.02]
[1749495754300,18.90485841,156.71,156.69,39.02]
[1749495757473,18.90485841,156.71,156.69,128.92]
[1749495757681,18.05000428,156.72,156.69,128.92]
[1749495757882,24.19239132,156.72,156.7,18.64964886]
[1749495758093,30.57322062,156.72,156.7,18.64964886]
[1749495758318,24.19239132,156.72,156.7,18.64964886]
[1749495759607,12.52333032,156.71,156.7,18.64964886]
[1749495760007,11.669061,156.72,156.7,18.64964886]
[1749495760209,24.19239132,156.72,156.7,18.64964886]
[1749495760504,12.52333032,156.71,156.7,18.64964886]
[1749495760890,18.04988548,156.72,156.7,18.64964886]
[1749495760891,30.5732158,156.72,156.7,18.64964886]
[1749495761627,11.669061,156.72,156.71,31.17297918]
[1749495761788,11.669061,156.72,156.71,121.07297918]
[1749495761990,11.669061,156.72,156.71,108.54964886]
[1749495763597,11.669061,156.72,156.71,121.07297918]
[1749495763801,11.669061,156.72,156.71,108.54964886]
[1749495764190,11.669061,156.72,156.71,108.93324886]
[1749495765809,11.669061,156.72,156.71,121.45657918]
[1749495766210,11.669061,156.72,156.71,108.93324886]
[1749495766402,12.52333032,156.74,156.73,18.64964886]
[1749495767908,6.37917836,156.76,156.73,18.64964886]
[1749495768212,6.37917836,156.76,156.73,96.88058786]
[1749495768600,12.52333032,156.75,156.73,96.88058786]
[1749495769198,19.54056567,156.75,156.73,96.88058786]
[1749495769719,25.92026794,156.75,156.73,96.88058786]
[1749495771033,6.37877144,156.77,156.73,96.88058786]
[1749495771211,19.54056567,156.75,156.73,96.88058786]
[1749495771605,19.54056567,156.74,156.73,96.88058786]
[1749495771804,19.54056567,156.74,156.73,78.230939]
[1749495773726,25.92055801,156.74,156.73,78.230939]
[1749495778194,25.92055801,156.74,156.7,57.68964886]
[1749495778399,19.54056567,156.71,156.7,57.68964886]
[1749495778594,19.54056567,156.71,156.7,147.58964886]
[1749495779931,25.92166133,156.72,156.7,147.58964886]
[1749495782014,19.54056567,156.71,156.7,147.58964886]
[1749495783423,25.92177937,156.71,156.7,147.58964886]
[1749495784337,25.92177937,156.71,156.7,89.9]
[1749495788929,30.67329824,156.74,156.71,18.64964886]
[1749495789130,25.92066625,156.74,156.71,108.54964886]
[1749495789437,18.88681267,156.74,156.71,118.64964886]
[1749495791250,19.54295581,156.74,156.71,118.64964886]
[1749495793233,19.54295581,156.74,156.71,119.03324886]
[1749495793443,25.92301743,156.74,156.71,119.03324886]
[1749495794459,30.69465127,156.74,156.71,119.03324886]
[1749495794626,25.92301743,156.74,156.71,119.03324886]
[1749495801439,19.54295581,156.72,156.71,100.3836]
[1749495801637,24.31630248,156.72,156.71,100.3836]
[1749495801840,4.77334667,156.72,156.71,0.3836]
[1749495802053,43.85925829,156.72,156.71,0.3836]
[1749495802250,24.31630248,156.72,156.71,0.3836]
[1749495802833,30.69710901,156.72,156.71,0.3836]
[1749495806660,30.69312507,156.72,156.71,0.3836]
[1749495808863,11.15016926,156.72,156.71,0.3836]
[1749495809164,6.38080653,156.72,156.71,0.3836]
[1749495809360,11.15016926,156.72,156.71,0.3836]
[1749495809549,25.9234389,156.73,156.71,0.3836]
[1749495811035,19.54295581,156.73,156.71,0.3836]
[1749495811238,4.76798754,156.73,156.71,0.3836]
[1749495811664,19.54295581,156.73,156.71,0.3836]
[1749495812246,24.31118558,156.75,156.72,18.64964886]
[1749495812447,6.37917836,156.76,156.72,108.54964886]
[1749495812657,24.3118009,156.75,156.72,108.54964886]
[1749495812862,19.54295581,156.75,156.72,108.54964886]
[1749495813164,24.3121105,156.75,156.72,108.54964886]
[1749495813466,24.31181961,156.75,156.72,108.54964886]
[1749495813652,30.69163105,156.75,156.72,108.54964886]
[1749495813858,25.92276725,156.75,156.72,108.54964886]
[1749495814167,19.54295581,156.76,156.72,128.09260467]
[1749495814381,24.31181961,156.76,156.72,128.09260467]
[1749495814543,4.7688638,156.76,156.72,128.09260467]
[1749495814750,24.31181961,156.76,156.72,128.09260467]
[1749495815277,19.54295581,156.76,156.73,18.64964886]
[1749495815638,25.92254113,156.75,156.73,18.64964886]
[1749495815859,19.54295581,156.74,156.72,89.9]
[1749495816272,6.37919883,156.76,156.73,18.64964886]
[1749495816470,19.54295581,156.74,156.71,49.24]
[1749495816768,19.54295581,156.74,156.72,18.64964886]
[1749495817579,19.54295581,156.73,156.69,18.64964886]
[1749495817776,19.54295581,156.73,156.68,10.18]
[1749495817777,19.54295581,156.7,156.68,49.36]
[1749495818074,19.54295581,156.69,156.65,57.84964886]
[1749495818372,19.54295581,156.68,156.65,57.84964886]
[1749495818876,19.54295581,156.69,156.65,77.39260467]
[1749495819058,19.54295581,156.69,156.68,26.0]
[1749495821388,19.54295581,156.7,156.68,44.64964886]
[1749495823275,25.92464911,156.7,156.68,44.64964886]
[1749495823483,19.54295581,156.69,156.68,44.64964886]
[1749495823684,6.3816933,156.7,156.68,44.64964886]
[1749495823981,19.54295581,156.69,156.68,44.64964886]
[1749495827752,25.92498401,156.69,156.65,39.2]
[1749495828074,6.3820282,156.69,156.66,26.0]
[1749495828282,19.54295581,156.67,156.65,18.64964886]
[1749495828472,19.54295581,156.66,156.65,18.64964886]
[1749495828668,19.54295581,156.66,156.65,108.54964886]
[1749495829483,25.92620616,156.66,156.65,108.54964886]
[1749495829664,19.54295581,156.66,156.65,108.54964886]
[1749495830384,19.54295581,156.67,156.65,108.54964886]
[1749495831654,19.54295581,156.66,156.65,108.54964886]
[1749495833284,19.54295581,156.66,156.65,108.93324886]
[1749495833989,25.92620616,156.66,156.65,90.2836]
[1749495835858,26.2105293,156.66,156.65,0.3836]
[1749495836179,91.6620255,156.66,156.65,0.3836]
[1749495837556,67.3537293,156.66,156.65,0.3836]
[1749495837982,25.92620616,156.66,156.65,0.3836]
[1749495850200,6.38325035,156.66,156.65,0.3836]
[1749495850502,25.92620616,156.66,156.65,0.3836]
[1749495858896,45.75348511,156.66,156.65,0.3836]
[1749495859105,0.28432314,156.65,156.62,89.9]
[1749495859306,19.82727895,156.63,156.62,89.9]
[1749495859504,19.82727895,156.63,156.57,89.9]
[1749495859505,0.28432314,156.62,156.57,89.9]
[1749495859695,19.54295581,156.58,156.57,89.9]
[1749495860092,0.28432314,156.62,156.57,89.9]
[1749495860294,19.54295581,156.58,156.57,89.9]
[1749495860600,25.92946749,156.58,156.57,89.9]
[1749495865002,22.34926432,156.61,156.57,89.9]
[1749495865204,19.54295581,156.58,156.57,89.9]
[1749495867122,25.92946749,156.58,156.57,89.9]
[1749495867414,45.4724233,156.58,156.57,89.9]
[1749495867606,61.72302565,156.58,156.53,89.9]
[1749495867822,19.54295581,156.54,156.53,89.9]
[1749495868701,25.93109941,156.54,156.53,89.9]
[1749495875519,22.35516777,156.57,156.53,89.9]
[1749495875717,6.38691958,156.57,156.53,89.9]
[1749495875926,15.96533032,156.59,156.53,89.9]
[1749495875927,6.38610383,156.59,156.54,18.64964886]
[1749495876106,6.38610383,156.59,156.54,108.54964886]
[1749495876107,19.54295581,156.55,156.54,108.54964886]
[1749495878120,19.54295581,156.55,156.54,89.9]
[1749495878512,15.96567109,156.59,156.54,108.54964886]
[1749495878718,6.38651168,156.58,156.55,18.64964886]
[1749495878914,19.54295581,156.57,156.55,57.94964886]
[1749495879923,19.54295581,156.57,156.55,147.84964886]
[1749495880607,19.54295581,156.56,156.55,147.84964886]
[1749495883411,19.54295581,156.57,156.55,147.84964886]
[1749495884019,22.34853021,156.61,156.55,147.84964886]
[1749495884220,19.54295581,156.57,156.55,147.84964886]
[1749495885233,19.54295581,156.58,156.55,154.23737841]
[1749495886415,49.52,156.65,156.55,154.23737841]
[1749495886416,1.5797,156.64,156.57,18.64964886]
[1749495886628,19.54295581,156.61,156.59,18.64964886]
[1749495887424,22.34280241,156.65,156.59,18.64964886]
[1749495887714,19.54295581,156.61,156.59,18.64964886]
[1749495889628,6.38569604,156.6,156.59,18.64964886]
[1749495889815,6.38569604,156.6,156.59,108.54964886]
[1749495891336,25.92865185,156.6,156.59,108.54964886]
[1749495899945,25.92865185,156.6,156.59,89.9]
[1749495905255,30.68595275,156.6,156.59,89.9]
[1749495905457,25.92865185,156.6,156.59,89.9]
[1749495905840,30.68595275,156.6,156.59,89.9]
[1749495906046,25.92865185,156.6,156.59,89.9]
[1749495906435,30.68595275,156.6,156.59,89.9]
[1749495906659,25.92865185,156.6,156.59,89.9]
[1749495907035,30.68595275,156.6,156.59,89.9]
[1749495907237,25.92865185,156.6,156.59,89.9]
[1749495907853,30.68595275,156.6,156.59,89.9]
[1749495908043,25.92865185,156.6,156.59,89.9]
[1749495908556,30.68595275,156.6,156.59,89.9]
[1749495908753,25.92865185,156.6,156.59,89.9]
[1749495908965,6.38539934,156.61,156.59,89.9]
[1749495909157,19.54295581,156.6,156.59,108.54964886]
[1749495910149,6.38539934,156.61,156.59,108.54964886]
[1749495910345,19.54295581,156.6,156.59,108.54964886]
[1749495913548,6.38539934,156.61,156.59,108.54964886]
[1749495913549,19.54295581,156.61,156.59,108.54964886]
[1749495913984,19.54295581,156.61,156.6,39.1]
[1749495915264,65.40432314,156.66,156.6,39.1]
[1749495915265,4.7573009,156.63,156.61,18.64964886]
[1749495915464,25.92724511,156.64,156.61,18.64964886]
[1749495915650,25.92724511,156.64,156.62,39.1]
[1749495915851,19.54295581,156.63,156.62,57.74964886]
[1749495916563,19.54295581,156.63,156.61,39.1]
[1749495917541,25.92770254,156.63,156.61,39.1]
[1749495918360,19.54295581,156.62,156.61,57.74964886]
[1749495923852,25.92783641,156.62,156.61,57.74964886]
[1749495925062,25.92783641,156.62,156.61,39.1]
[1749495925271,30.70307009,156.62,156.6,18.64964886]
[1749495925470,19.54295581,156.61,156.59,49.22]
[1749495925680,19.54295581,156.6,156.59,67.86964886]
[1749495925974,19.54295581,156.6,156.59,157.76964886]
[1749495926162,19.54295581,156.6,156.59,100.04]
[1749495926365,24.31885831,156.6,156.59,100.04]
[1749495926562,19.54295581,156.6,156.59,100.04]
[1749495926764,24.31885831,156.6,156.59,100.04]
[1749495926965,25.92865185,156.6,156.59,100.04]
[1749495927163,30.70455435,156.6,156.59,100.04]
[1749495927365,25.92865185,156.6,156.59,100.04]
[1749495927568,30.70455435,156.6,156.59,100.04]
[1749495927776,25.92865185,156.6,156.59,100.04]
[1749495927961,30.70455435,156.6,156.59,100.04]
[1749495928154,25.92865185,156.6,156.59,100.04]
[1749495928358,30.70455435,156.6,156.58,39.08]
[1749495928553,19.54295581,156.59,156.58,39.08]
[1749495929082,25.92905964,156.59,156.58,39.08]
[1749495929877,25.92905964,156.59,156.57,57.72964886]
[1749495930885,19.54295581,156.58,156.56,89.9]
[1749495931073,25.92987539,156.57,156.56,147.62964886]
[1749495931585,25.92987539,156.57,156.56,18.64964886]
[1749495931763,25.92987539,156.57,156.56,57.72964886]
[1749495932089,6.38691958,156.57,156.56,57.72964886]
[1749495932266,19.54295581,156.57,156.56,57.72964886]
[1749495933077,25.92987539,156.57,156.56,57.72964886]
[1749495934882,25.92987539,156.57,156.56,147.62964886]
[1749495937063,25.92987539,156.57,156.56,128.98]
[1749495937486,25.92987539,156.57,156.56,89.9]
[1749495942298,4.77509723,156.59,156.56,108.54964886]
[1749495942299,6.38651168,156.58,156.56,108.54964886]
[1749495942498,19.54295581,156.57,156.56,108.54964886]
[1749495944918,4.77509723,156.61,156.57,18.64964886]
[1749495945090,6.38581196,156.6,156.58,39.08]
[1749495945300,19.54295581,156.6,156.59,18.64964886]
[1749495946791,19.54295581,156.6,156.59,108.54964886]
[1749495946994,25.92840191,156.61,156.59,108.54964886]
[1749495947210,19.54295581,156.61,156.6,57.72964886]
[1749495947514,19.54295581,156.62,156.61,18.64964886]
[1749495947807,19.54295581,156.63,156.61,18.64964886]
[1749495947987,25.92744946,156.63,156.61,18.64964886]
[1749495948600,25.92744946,156.63,156.61,108.54964886]
[1749495948810,6.38424243,156.64,156.61,108.54964886]
[1749495949312,19.54295581,156.64,156.61,108.54964886]
[1749495950100,19.54295581,156.63,156.61,108.54964886]
[1749495954807,25.92730396,156.64,156.61,108.54964886]
[1749495955008,19.54295581,156.64,156.61,108.54964886]
[1749495956816,25.92713229,156.64,156.61,108.54964886]
[1749495958711,6.38378986,156.65,156.61,108.54964886]
[1749495959101,19.54295581,156.64,156.61,108.54964886]
[1749495959612,4.77354849,156.66,156.62,19.54295581]
[1749495959613,19.54295581,156.66,156.62,19.54295581]
[1749495959931,46.58891387,156.71,156.62,19.54295581]
[1749495959932,24.3165043,156.68,156.64,38.19260467]
[1749495960099,25.92544388,156.68,156.64,128.09260467]
[1749495960409,25.92544388,156.68,156.65,10.12]
[1749495960603,25.92544388,156.68,156.67,18.64964886]
[1749495960824,11.15570903,156.69,156.67,18.64964886]
[1749495961129,25.92511635,156.69,156.67,18.64964886]
[1749495961325,19.54295581,156.68,156.67,18.64964886]
[1749495962403,25.92511635,156.69,156.67,108.54964886]
[1749495962901,6.38216054,156.69,156.67,108.54964886]
[1749495963935,19.54295581,156.7,156.67,108.54964886]
[1749495965028,25.92460585,156.7,156.67,108.54964886]
[1749495965231,19.54295581,156.68,156.65,89.9]
[1749495965402,6.38165004,156.7,156.66,18.64964886]
[1749495965727,19.54295581,156.67,156.65,89.9]
[1749495965922,25.92620616,156.66,156.65,108.54964886]
[1749495966124,19.54295581,156.66,156.65,108.54964886]
[1749495966923,19.54295581,156.67,156.66,18.64964886]
[1749495967423,6.38257868,156.68,156.66,18.64964886]
[1749495967726,19.54295581,156.67,156.66,57.70964886]
[1749495967927,25.92579872,156.67,156.66,39.06]
[1749495968124,25.92579872,156.67,156.65,89.9]
[1749495968317,19.54295581,156.66,156.65,128.96]
[1749495968622,19.54295581,156.66,156.65,89.9]
[1749495969929,25.92620616,156.66,156.65,89.9]
[1749495970426,19.54295581,156.66,156.65,108.54964886]
[1749495970621,25.92620616,156.66,156.65,108.54964886]
[1749495971215,25.92620616,156.66,156.65,89.9]
[1749495971617,6.38325035,156.66,156.65,89.9]
[1749495971823,25.92620616,156.66,156.65,89.9]
[1749495977617,25.92620616,156.66,156.64,89.9]
[1749495977832,39.08591162,156.65,156.64,89.9]
[1749495978017,6.38325035,156.66,156.64,89.9]
[1749495978216,19.54295581,156.65,156.64,89.9]
[1749495979239,25.92661364,156.65,156.64,89.9]
[1749495982935,11.15720632,156.65,156.64,89.9]
[1749495983117,25.92661364,156.65,156.64,89.9]
[1749495984540,19.54295581,156.65,156.64,108.54964886]
[1749495984724,19.54295581,156.66,156.64,108.54964886]
[1749495984931,19.54295581,156.66,156.65,39.06]
[1749495986569,25.92620616,156.66,156.65,39.06]
[1749495988248,25.92620616,156.66,156.65,128.96]
[1749495988617,30.69975465,156.66,156.65,128.96]
[1749495988819,25.92620616,156.66,156.65,128.96]
[1749495989140,6.38325035,156.66,156.65,128.96]
[1749495989447,30.69975465,156.66,156.65,128.96]
[1749495989643,6.38325035,156.66,156.65,128.96]
[1749495989849,25.92620616,156.66,156.65,128.96]
[1749495990739,30.69908505,156.66,156.65,128.96]
[1749495991354,25.92620616,156.66,156.65,128.96]
[1749495991854,30.69908505,156.66,156.65,128.96]
[1749495992055,25.92620616,156.66,156.65,128.96]
[1749495992440,30.69908505,156.66,156.65,128.96]
[1749495994109,50.24204086,156.66,156.65,89.9]
[1749495994228,30.69908505,156.66,156.65,89.9]
[1749495995356,11.15612924,156.66,156.65,89.9]
[1749495995557,30.69908505,156.66,156.65,89.9]
[1749495996362,11.15612924,156.66,156.65,89.9]
[1749495996563,30.69908505,156.66,156.65,89.9]
[1749495996938,24.3158347,156.66,156.65,147.60964886]
[1749495997968,30.69908505,156.66,156.65,147.60964886]
[1749495998175,30.69908505,156.66,156.65,128.96]
[1749495998552,30.69908505,156.66,156.65,89.9]
[1749496003978,11.15612924,156.66,156.65,89.9]
[1749496004180,30.69908505,156.66,156.65,89.9]
[1749496007575,24.3158347,156.66,156.65,128.96]
[1749496007766,30.69908505,156.66,156.65,128.96]
[1749496008974,30.69908505,156.66,156.65,89.9]
[1749496010854,30.69908505,156.66,156.65,128.96]
[1749496012263,24.3158347,156.66,156.65,147.60964886]
[1749496017678,30.69908505,156.66,156.65,147.60964886]
[1749496018885,24.3158347,156.66,156.65,147.60964886]
[1749496021402,30.69908505,156.66,156.65,147.60964886]
[1749496023311,24.3158347,156.66,156.65,147.60964886]
[1749496023487,4.77287889,156.66,156.65,147.60964886]
[1749496023888,24.3158347,156.66,156.65,147.60964886]
[1749496024505,30.69908505,156.66,156.65,147.60964886]
[1749496025415,23.67641734,156.66,156.65,147.60964886]
[1749496029400,17.29316699,156.66,156.65,147.60964886]
[1749496030013,17.30244339,156.66,156.65,147.60964886]
[1749496031408,12.5202881,156.68,156.66,18.64964886]
[1749496031610,4.78128056,156.67,156.66,18.64964886]
[1749496031813,12.5202881,156.68,156.66,18.64964886]
[1749496031814,12.5202881,156.68,156.66,57.70964886]
[1749496031997,12.5202881,156.69,156.66,57.70964886]
[1749496032192,4.78096002,156.68,156.66,57.70964886]
[1749496032512,12.5202881,156.69,156.66,57.70964886]
[1749496032809,4.77990834,156.68,156.66,57.70964886]
[1749496032987,12.5202881,156.69,156.66,57.70964886]
[1749496033188,4.77992404,156.68,156.66,57.70964886]
[1749496033382,12.5202881,156.69,156.66,57.70964886]
[1749496033383,12.5202881,156.67,156.66,57.70964886]
[1749496033591,17.29978457,156.67,156.66,39.06]
[1749496034187,17.29978457,156.67,156.65,89.9]
[1749496034387,17.29978457,156.66,156.65,108.54964886]
[1749496035513,24.34361276,156.66,156.65,108.54964886]
[1749496036613,30.72686311,156.66,156.65,108.54964886]
[1749496041115,24.34361276,156.66,156.65,108.54964886]
[1749496041624,30.72686311,156.66,156.65,108.54964886]
[1749496046934,4.77949647,156.66,156.65,108.54964886]
[1749496047104,25.94588294,156.7,156.66,18.64964886]
[1749496047303,24.34609449,156.69,156.68,18.64964886]
[1749496047514,24.34609449,156.69,156.68,108.54964886]
[1749496049741,30.72812269,156.69,156.68,108.54964886]
[1749496051334,25.94614449,156.69,156.68,108.54964886]
[1749496051543,30.72331232,156.69,156.68,108.54964886]
[1749496051921,11.15919603,156.69,156.68,108.54964886]
[1749496052235,30.72331232,156.69,156.68,108.54964886]
[1749496052634,4.77716783,156.69,156.68,108.54964886]
[1749496052938,24.34128412,156.69,156.68,108.54964886]
[1749496053305,30.72331232,156.69,156.68,108.54964886]
[1749496054546,30.72331232,156.69,156.68,89.9]
[1749496057218,29.65314175,156.69,156.68,89.9]
[1749496057411,23.68168196,156.69,156.68,89.9]
[1749496058161,29.65314175,156.69,156.68,89.9]
[1749496059252,52.65094927,156.69,156.65,128.94]
[1749496059431,25.94847328,156.66,156.65,128.94]
[1749496059631,30.72564111,156.66,156.65,128.94]
[1749496061465,30.72564111,156.66,156.65,89.9]
[1749496069058,11.16041818,156.66,156.65,89.9]
[1749496069268,30.72564111,156.66,156.65,89.9]
[1749496073069,30.72562354,156.66,156.65,89.9]
[1749496074171,25.94847328,156.66,156.65,89.9]
[1749496076865,30.72532543,156.66,156.65,89.9]
[1749496077074,25.94847328,156.66,156.65,89.9]
[1749496077240,30.72542991,156.66,156.65,89.9]
[1749496078362,30.72542991,156.66,156.65,90.2842]
[1749496079471,23.68116008,156.66,156.65,90.2842]
[1749496086569,4.77695663,156.66,156.65,108.93384886]
[1749496086872,18.90398965,156.67,156.65,108.93384886]
[1749496087173,18.90398965,156.67,156.66,39.04]
[1749496087352,17.2975404,156.67,156.66,57.68964886]
[1749496087557,12.5209531,156.68,156.66,39.04]
[1749496088066,18.90339194,156.68,156.66,39.04]
[1749496088674,12.5209531,156.68,156.66,39.04]
[1749496088859,12.5209531,156.68,156.66,128.94]
[1749496090068,18.9034331,156.68,156.66,128.94]
[1749496090274,12.5209531,156.67,156.66,147.58964886]
[1749496091373,23.67985024,156.67,156.66,128.94]
[1749496094954,23.67985024,156.67,156.66,89.9]
[1749496100585,23.67985024,156.67,156.63,139.04]
[1749496100777,12.5209531,156.64,156.63,157.68964886]
[1749496100978,17.30164294,156.64,156.63,157.68964886]
[1749496101283,17.30164294,156.64,156.63,139.04]
[1749496102063,23.68570831,156.64,156.63,139.04]
[1749496102265,23.68570831,156.64,156.63,100.0]
[1749496102685,18.90501847,156.64,156.63,100.0]
[1749496103078,23.68554697,156.64,156.63,100.0]
[1749496104167,23.68554697,156.64,156.63,10.1]
[1749496104987,23.68554697,156.64,156.62,128.94]
[1749496105285,12.5209531,156.63,156.62,89.9]
[1749496105476,12.5209531,156.63,156.62,128.94]
[1749496108160,12.5209531,156.63,156.62,129.3242]
[1749496108688,12.5209531,156.63,156.62,147.97384886]
[1749496108868,18.90501847,156.64,156.62,129.3242]
[1749496110887,12.5209531,156.64,156.62,129.3242]
[1749496111094,6.38243553,156.68,156.63,18.64964886]
[1749496111291,12.5209531,156.65,156.63,108.54964886]
[1749496117000,6.38243553,156.68,156.63,108.54964886]
[1749496117217,12.5209531,156.7,156.67,18.64964886]
[1749496117500,12.5209531,156.7,156.67,108.54964886]
[1749496118281,18.9026392,156.7,156.67,108.54964886]
[1749496118998,12.5209531,156.7,156.67,108.54964886]
[1749496119802,18.9025881,156.7,156.67,108.54964886]
[1749496120189,12.5209531,156.69,156.67,108.54964886]
[1749496121405,12.5209531,156.68,156.67,108.54964886]
[1749496121907,12.5209531,156.68,156.67,89.9]
[1749496123282,12.5209531,156.68,156.67,90.2842]
[1749496123508,18.90338863,156.68,156.67,90.2842]
[1749496125491,12.5209531,156.68,156.67,90.2842]
[1749496125709,18.90338863,156.68,156.67,90.2842]
[1749496133415,23.6740598,156.68,156.67,90.2842]
[1749496133612,18.90338863,156.68,156.67,90.2842]
[1749496134519,23.67412831,156.68,156.67,90.2842]
[1749496134834,18.90338863,156.68,156.67,90.2842]
[1749496135503,23.67412831,156.68,156.67,90.2842]
[1749496135708,18.90338863,156.68,156.67,90.2842]
[1749496136324,23.67412831,156.68,156.67,90.2842]
[1749496136511,18.90338863,156.68,156.67,90.2842]
[1749496137126,23.67412831,156.68,156.67,90.2842]
[1749496137326,18.90338863,156.68,156.67,90.2842]
[1749496137531,23.67412831,156.68,156.67,90.2842]
[1749496137729,18.90338863,156.68,156.67,90.2842]
[1749496138233,23.67412831,156.68,156.67,90.2842]
[1749496139512,18.90338863,156.68,156.67,90.2842]
[1749496139921,23.67412831,156.68,156.67,90.2842]
[1749496140140,18.90338863,156.68,156.67,90.2842]
[1749496140642,23.67412831,156.68,156.67,90.2842]
[1749496142938,11.15317521,156.68,156.67,90.2842]
[1749496143141,18.90338863,156.68,156.67,90.2842]
[1749496143516,23.67412831,156.68,156.67,90.2842]
[1749496143722,18.90338863,156.68,156.67,90.2842]
[1749496144810,23.67539738,156.68,156.67,90.2842]
[1749496145009,18.90338863,156.68,156.67,90.2842]
[1749496145438,23.67539738,156.68,156.67,90.2842]
[1749496148521,23.95972052,156.68,156.67,0.3842]
[1749496161765,1.6505,156.64,156.51,7.7081]
[1749496162066,12.5209531,156.52,156.51,7.7081]
[1749496162361,12.5209531,156.52,156.48,49.1]
[1749496162536,12.5209531,156.51,156.48,75.1]
[1749496162744,12.5209531,156.51,156.49,18.64964886]
[1749496163155,12.5209531,156.51,156.48,10.08]
[1749496163486,19.61001178,156.49,156.43,17.8717]
[1749496163695,22.6443819,156.53,156.43,56.9517]
[1749496163696,19.61001178,156.45,156.43,56.9517]
[1749496164456,19.61001178,156.45,156.44,18.64964886]
[1749496164657,26.0,156.5,156.44,18.64964886]
[1749496164864,19.61001178,156.46,156.44,18.64964886]
[1749496165357,19.61001178,156.45,156.44,18.64964886]
[1749496167065,19.61001178,156.45,156.43,17.8717]
[1749496167272,19.61001178,156.44,156.43,36.52134886]
[1749496167858,19.61001178,156.44,156.43,28.72964886]
[1749496168055,19.61001178,156.44,156.43,10.08]
[1749496168584,19.61001178,156.44,156.41,18.64964886]
[1749496168775,19.61001178,156.42,156.41,18.64964886]
[1749496168971,19.61001178,156.43,156.41,18.64964886]
[1749496169884,32.39065352,156.48,156.41,44.65308488]
[1749496170054,19.61001178,156.46,156.43,18.64964886]
[1749496170555,19.61001178,156.45,156.41,44.65308488]
[1749496171474,19.61001178,156.45,156.43,18.64964886]
[1749496172180,32.39065352,156.48,156.43,18.64964886]
[1749496172399,19.61001178,156.45,156.43,18.64964886]
[1749496173294,26.0,156.48,156.43,25.04213481]
[1749496173778,26.0,156.48,156.43,44.65214659]
[1749496173957,19.61001178,156.46,156.43,25.04213481]
[1749496174460,19.61001178,156.46,156.43,114.94213481]
[1749496178506,19.61001178,156.47,156.43,134.55214659]
[1749496178690,32.39007746,156.5,156.45,18.64964886]
[1749496178894,19.61001178,156.48,156.45,108.54964886]
[1749496179901,32.39007746,156.5,156.45,108.54964886]
[1749496179902,19.61001178,156.47,156.45,108.54964886]
[1749496183412,19.61001178,156.47,156.45,114.94144933]
[1749496183588,19.61001178,156.47,156.45,108.54964886]
[1749496183916,19.61001178,156.48,156.45,108.54964886]
[1749496184416,26.0,156.5,156.45,173.65147336]
[1749496184598,19.61001178,156.49,156.45,173.65147336]
[1749496184799,19.61001178,156.49,156.45,147.64964886]
[1749496184999,32.38982733,156.5,156.45,147.64964886]
[1749496185000,19.61001178,156.48,156.45,147.64964886]
[1749496185206,26.00063558,156.48,156.45,147.64964886]
[1749496185701,19.61001178,156.48,156.45,147.64964886]
[1749496188316,26.0006636,156.48,156.45,147.64964886]